bitfinex-derivatives/quotes_SOLF0:USTF0_20250818
["timestamp","ask_amount","ask_price","bid_price","bid_amount"]
[1755539757099,2.94998833,184.87,184.83,3.0]
[1755539757100,0.03998833,184.87,184.83,3.0]
[1755539757308,0.03998833,184.87,184.82,5.91380546]
[1755539757602,0.03998833,184.87,184.85,3.0]
[1755539757802,0.03998833,184.87,184.84,3.0]
[1755539758008,0.03998833,184.87,184.86,3.0]
[1755539758308,0.03998833,184.87,184.86,8.4064]
[1755539760503,50.0,184.95,184.86,3.0]
[1755539760709,3.86809334,184.94,184.86,3.0]
[1755539760910,50.0,184.99,184.87,5.406]
[1755539760911,6.77809334,184.93,184.87,5.406]
[1755539761110,2.91,184.93,184.86,3.0]
[1755539761699,2.91,184.98,184.89,3.0]
[1755539762003,3.86942884,184.97,184.89,3.0]
[1755539762204,3.86942884,184.96,184.9,5.4052]
[1755539762402,3.87025724,184.95,184.91,0.03757951]
[1755539762709,2.91,184.98,184.91,0.03757951]
[1755539763011,3.87025724,184.97,184.91,0.03757951]
[1755539763205,2.91,184.95,184.91,0.03757951]
[1755539763403,3.87025724,184.94,184.91,0.03757951]
[1755539763603,2.91,184.94,184.91,0.03757951]
[1755539764612,3.8735849,184.93,184.91,0.03757951]
[1755539764809,2.91,184.98,184.91,0.03757951]
[1755539765010,8.27864167,184.97,184.91,0.03757951]
[1755539765210,8.28038476,184.96,184.91,0.03757951]
[1755539765413,2.91,184.93,184.91,0.03757951]
[1755539766206,3.87675323,184.92,184.91,0.03757951]
[1755539767910,6.78675323,184.92,184.91,0.03757951]
[1755539769209,3.87675323,184.92,184.91,0.03757951]
[1755539771518,11.20366345,184.92,184.83,6.75143508]
[1755539771719,3.87675323,184.91,184.83,6.75143508]
[1755539771911,3.87675323,184.9,184.83,6.75143508]
[1755539772111,3.87675323,184.89,184.83,12.15853508]
[1755539772312,3.87675323,184.88,184.84,3.0]
[1755539772512,3.87675323,184.87,184.85,3.0]
[1755539772714,3.87675323,184.86,184.85,3.0]
[1755539773018,6.02502973,184.95,184.86,5.4062]
[1755539773216,8.30194493,184.94,184.86,3.75143508]
[1755539773513,3.88468549,184.93,184.86,3.75143508]
[1755539773718,3.88468549,184.92,184.88,3.0]
[1755539773917,3.88468549,184.91,184.86,3.75143508]
[1755539774113,3.88468549,184.9,184.87,3.0]
[1755539774314,2.91,184.91,184.87,3.0]
[1755539774522,3.88464015,184.9,184.87,3.0]
[1755539774822,2.91,184.91,184.85,5.4064]
[1755539775118,3.82665523,184.9,184.84,8.4069]
[1755539775319,3.82665523,184.89,184.85,3.0]
[1755539775517,2.91,184.92,184.85,8.4066]
[1755539775821,3.82663793,184.91,184.85,3.0]
[1755539776022,3.82663793,184.9,184.87,3.0]
[1755539776220,2.91,184.92,184.87,3.0]
[1755539776421,3.82662133,184.91,184.87,3.0]
[1755539776613,3.82662133,184.9,184.87,3.0]
[1755539776811,50.0,184.96,184.87,3.0]
[1755539777020,2.91,184.91,184.87,3.0]
[1755539777324,3.82662133,184.9,184.87,3.0]
[1755539777725,2.91,184.91,184.87,3.0]
[1755539777920,3.82676985,184.9,184.87,3.0]
[1755539778219,2.91,184.91,184.85,5.4065]
[1755539778416,3.8268649,184.9,184.85,5.4065]
[1755539778610,3.8268649,184.89,184.86,3.0]
[1755539778814,2.91,184.9,184.86,3.0]
[1755539779023,3.8268649,184.89,184.86,3.0]
[1755539779225,2.91,184.9,184.86,3.0]
[1755539779424,3.82701831,184.89,184.86,3.0]
[1755539779623,2.91,184.9,184.86,3.0]
[1755539779815,3.82701831,184.89,184.86,3.0]
[1755539780120,2.91,184.89,184.85,5.4065]
[1755539780318,2.91,184.89,184.85,8.4065]
[1755539780624,3.82714545,184.88,184.85,8.4065]
[1755539780925,2.91,184.89,184.85,8.4065]
[1755539781221,3.8273262,184.88,184.85,8.4065]
[1755539781422,2.91,184.89,184.85,8.4065]
[1755539781622,3.82710697,184.88,184.85,8.4065]
[1755539781819,2.91,184.89,184.85,8.4065]
[1755539782018,3.82710697,184.88,184.85,8.4065]
[1755539782216,2.91,184.89,184.85,8.4065]
[1755539782417,3.8267655,184.88,184.85,8.4065]
[1755539782613,2.91,184.89,184.85,8.4065]
[1755539782817,3.8267655,184.88,184.85,8.4065]
[1755539783012,2.91,184.89,184.86,2.92]
[1755539784026,2.91,184.89,184.83,5.912241]
[1755539784027,2.91,184.89,184.83,2.92]
[1755539784326,3.82681744,184.88,184.83,2.92]
[1755539784523,56.02502973,184.95,184.83,2.92]
[1755539784524,6.82681744,184.87,184.83,2.92]
[1755539784825,3.0,184.87,184.83,2.92]
[1755539785030,6.82717894,184.86,184.79,2.92]
[1755539785327,3.0,184.86,184.79,2.92]
[1755539785727,3.82745326,184.85,184.79,2.92]
[1755539786027,3.0,184.86,184.79,8.3285]
[1755539786326,3.82763405,184.85,184.79,8.3285]
[1755539786527,3.0,184.86,184.79,8.3285]
[1755539786727,3.82706483,184.85,184.79,8.3285]
[1755539786930,3.0,184.86,184.79,8.3285]
[1755539787123,3.82706483,184.85,184.79,8.3285]
[1755539787320,3.0,184.86,184.79,8.3285]
[1755539787516,3.82660419,184.85,184.79,8.3285]
[1755539787719,3.0,184.86,184.79,8.3285]
[1755539787923,3.82678494,184.85,184.79,8.3285]
[1755539788125,3.82794965,184.84,184.79,8.3285]
[1755539788427,3.0,184.86,184.79,8.3285]
[1755539788630,3.8273765,184.85,184.79,8.3285]
[1755539788823,3.0,184.86,184.79,8.3285]
[1755539789125,3.8273765,184.85,184.79,8.3285]
[1755539789325,3.8273765,184.84,184.8,2.92]
[1755539789529,3.8282924,184.83,184.78,5.4088]
[1755539789725,3.0,184.83,184.78,8.3288]
[1755539790127,3.0,184.83,184.78,5.4088]
[1755539790322,3.0,184.83,184.79,2.92]
[1755539791229,3.0,184.81,184.75,5.912241]
[1755539792020,3.0,184.81,184.77,2.92]
[1755539793322,3.0,184.88,184.77,2.92]
[1755539793528,3.0,184.86,184.77,2.92]
[1755539793725,3.0,184.84,184.71,5.912241]
[1755539793939,3.0,184.82,184.74,5.41]
[1755539794233,3.83046069,184.81,184.72,2.92]
[1755539794431,3.83046069,184.8,184.72,6.67731056]
[1755539794632,6.83046069,184.79,184.72,6.67731056]
[1755539794830,3.83046069,184.78,184.72,6.67731056]
[1755539795026,3.0,184.76,184.72,6.67731056]
[1755539795337,3.0,184.76,184.72,2.92]
[1755539795627,0.03523486,184.76,184.69,9.16871056]
[1755539795836,6.8275915,184.75,184.69,9.16871056]
[1755539796026,3.0,184.75,184.67,2.92]
[1755539796228,3.82459786,184.74,184.64,2.92]
[1755539796436,3.0,184.75,184.67,2.92]
[1755539796633,3.82478137,184.74,184.67,2.92]
[1755539796834,3.0,184.75,184.67,2.92]
[1755539797034,0.03481515,184.73,184.67,2.92]
[1755539797630,0.03481515,184.73,184.71,2.92]
[1755539797830,3.0,184.79,184.72,6.67731056]
[1755539798141,3.0,184.79,184.7,0.03552037]
[1755539798327,3.81887661,184.78,184.7,3.79283093]
[1755539798531,3.81887661,184.77,184.7,3.79283093]
[1755539798732,3.0,184.79,184.71,2.92]
[1755539798934,3.8195034,184.78,184.71,2.92]
[1755539799140,3.8195034,184.77,184.71,2.92]
[1755539799340,3.0,184.79,184.71,2.92]
[1755539799641,3.81754821,184.78,184.71,2.92]
[1755539799834,9.78234029,184.85,184.7,3.79283093]
[1755539799835,3.0,184.82,184.75,2.92]
[1755539800035,3.81633429,184.81,184.75,2.92]
[1755539800339,9.0375446,184.92,184.69,3.75731056]
[1755539800340,3.0,184.85,184.79,3.75731056]
[1755539800533,3.81517099,184.84,184.8,2.92]
[1755539800841,3.0,184.85,184.79,3.75731056]
[1755539801042,6.81466897,184.84,184.79,3.75731056]
[1755539801227,3.0,184.84,184.8,2.95843693]
[1755539801740,373.22234029,184.93,184.82,3.75731056]
[1755539801741,3.0,184.88,184.82,3.75731056]
[1755539801941,6.81425716,184.87,184.82,6.67731056]
[1755539802241,3.0,184.87,184.82,6.67731056]
[1755539802433,3.0,184.87,184.83,0.03626469]
[1755539802637,363.44,184.93,184.83,0.03626469]
[1755539802638,3.0,184.86,184.83,0.03626469]
[1755539802942,3.0,184.92,184.85,3.75731056]
[1755539803143,3.0,184.9,184.83,0.03626469]
[1755539803340,3.0,184.88,184.71,2.92]
[1755539803535,3.0,184.88,184.7,374.3824]
[1755539803536,3.81339807,184.87,184.78,9.16611056]
[1755539803835,3.0,184.86,184.85,0.03784959]
[1755539804036,6.81339807,184.86,184.78,3.75731056]
[1755539804238,3.81339807,184.85,184.78,3.75731056]
[1755539804437,3.81339807,184.85,184.84,0.04012286]
[1755539804638,3.0,184.86,184.84,0.04012286]
[1755539804939,3.0,184.86,184.78,9.16591056]
[1755539805145,3.0,184.86,184.83,0.03425352]
[1755539806137,3.75731056,184.91,184.83,0.03425352]
[1755539806138,3.0,184.9,184.83,0.03425352]
[1755539807041,4.34380599,184.89,184.83,0.03425352]
[1755539807240,363.44,184.93,184.83,0.03425352]
[1755539807541,6.90795107,184.92,184.83,0.03425352]
[1755539807842,6.90795107,184.91,184.83,0.03425352]
[1755539808044,363.44,184.93,184.83,0.03425352]
[1755539808045,7.3445786,184.9,184.83,0.03425352]
[1755539808344,3.0,184.9,184.83,0.03425352]
[1755539809739,3.0,184.9,184.83,5.44155352]
[1755539810345,3.0,184.9,184.83,0.03425352]
[1755539812145,4.35133235,184.89,184.83,0.03425352]
[1755539812350,4.35175838,184.88,184.83,0.03425352]
[1755539812546,3.0,184.86,184.83,0.03425352]
[1755539812743,3.0,184.85,184.83,0.03425352]
[1755539813850,3.0,184.92,184.83,0.03425352]
[1755539814047,56.91814119,184.91,184.83,0.03425352]
[1755539814244,3.0,184.89,184.83,0.03425352]
[1755539815644,4.35386654,184.88,184.83,0.03425352]
[1755539815850,3.0,184.86,184.83,0.03425352]
[1755539816051,19.23,184.9,184.83,0.03425352]
[1755539816252,9.92103696,184.89,184.83,0.03425352]
[1755539816448,4.35420578,184.88,184.83,0.03425352]
[1755539816744,4.35420578,184.87,184.83,0.03425352]
[1755539816950,3.0,184.84,184.83,0.03425352]
[1755539818743,50.0,184.89,184.83,0.03425352]
[1755539818944,4.35587966,184.88,184.83,0.03425352]
[1755539819148,50.0,184.89,184.83,0.03425352]
[1755539819149,3.0,184.86,184.83,0.03425352]
[1755539820546,53.0,184.89,184.83,0.03425352]
[1755539820754,3.0,184.89,184.84,3.02]
[1755539821446,3.0,184.89,184.85,3.02]
[1755539822753,53.0,184.93,184.85,3.02]
[1755539822948,4.35687365,184.92,184.85,3.02]
[1755539823254,4.35687365,184.91,184.85,3.02]
[1755539823457,53.0,184.93,184.87,0.03672078]
[1755539823753,4.35763649,184.92,184.87,0.03672078]
[1755539823954,3.0,184.9,184.87,0.03672078]
[1755539825060,53.0,184.93,184.87,0.03672078]
[1755539825262,53.0,184.93,184.88,3.02]
[1755539825748,3.0,184.93,184.87,0.03672078]
[1755539825942,135.62,184.95,184.89,3.02]
[1755539826149,4.35732261,184.94,184.88,3.02]
[1755539826352,3.0,185.03,184.92,3.74912519]
[1755539826553,139.97364614,185.02,184.93,3.02]
[1755539826752,4.35364614,185.01,184.93,3.02]
[1755539826957,135.62,185.02,184.96,0.04132949]
[1755539827157,3.0,185.0,184.96,0.04132949]
[1755539827649,135.62,185.02,184.96,3.06132949]
[1755539830154,135.62,185.02,184.96,8.46482949]
[1755539830355,3.0,185.08,184.96,3.06132949]
[1755539830659,138.58,185.08,185.0,3.02]
[1755539830860,135.58,185.08,185.0,3.02]
[1755539831050,135.58,185.08,185.02,0.03741381]
[1755539831861,135.58,185.08,185.02,5.43931381]
[1755539832054,135.58,185.08,185.03,3.02]
[1755539832254,3.0,185.11,185.03,3.02]
[1755539832558,135.54,185.14,185.04,5.4011]
[1755539833358,135.54,185.14,185.07,0.03959714]
[1755539834053,3.0,185.13,185.07,0.03959714]
[1755539834859,4.31937801,185.12,185.07,0.03959714]
[1755539835163,3.0,185.13,185.07,0.03959714]
[1755539835459,135.54,185.14,185.07,0.03959714]
[1755539835460,4.3189335,185.12,185.07,0.03959714]
[1755539835665,3.0,185.08,185.07,0.03959714]
[1755539837656,16.23,185.07,184.86,5.9044892]
[1755539837868,3.0,185.05,184.92,3.02]
[1755539838362,3.0,185.05,184.94,3.02]
[1755539838870,0.04052896,185.01,184.94,3.02]
[1755539839055,0.04052896,185.01,184.94,8.4243]
[1755539839856,0.04052896,185.01,184.93,5.9044892]
[1755539840062,0.04052896,185.01,184.94,3.02]
[1755539840266,135.48,185.06,184.98,5.4031]
[1755539840460,135.48,185.06,184.99,3.02]
[1755539840863,0.04024383,185.04,184.99,5.4026]
[1755539841061,0.04024383,185.04,184.97,5.9044892]
[1755539841272,0.04024383,185.04,185.03,3.02]
[1755539841464,3.0,185.09,185.03,3.02]
[1755539841967,0.04154965,185.05,185.03,3.02]
[1755539842466,0.04154965,185.05,184.98,2.96]
[1755539843471,0.04154965,185.05,184.99,5.4026]
[1755539843966,0.04154965,185.05,184.98,2.96]
[1755539844269,0.04154965,185.05,185.03,2.96]
[1755539844463,52.87,185.13,185.04,2.96]
[1755539845070,52.87,185.13,185.06,5.4008]
[1755539845770,52.87,185.13,185.08,0.03751409]
[1755539846471,135.46,185.15,185.08,0.03751409]
[1755539848377,2.87,185.2,185.1,2.96]
[1755539848675,2.87,185.28,185.14,2.96]
[1755539849171,2.87,185.26,185.19,0.04012178]
[1755539850064,4.2812683,185.25,185.19,0.04012178]
[1755539850263,520.6944892,185.29,185.19,0.04012178]
[1755539850475,2.87,185.22,185.19,0.04012178]
[1755539850768,2.87,185.25,185.19,0.04012178]
[1755539851076,2.87,185.22,185.19,0.04012178]
[1755539851268,2.87,185.28,185.19,0.04012178]
[1755539851469,2.87,185.26,185.19,0.04012178]
[1755539851776,2.87,185.24,185.1,2.96]
[1755539852073,2.87,185.22,185.1,2.96]
[1755539852277,2.87,185.2,185.1,2.96]
[1755539852771,4.27764483,185.19,185.06,2.96]
[1755539852968,2.87,185.2,185.06,2.96]
[1755539853269,0.04015591,185.15,185.06,2.96]
[1755539853970,0.04015591,185.15,185.08,2.96]
[1755539858170,2.91015591,185.15,185.08,2.96]
[1755539858974,2.91015591,185.15,185.05,8.8644892]
[1755539859278,2.91015591,185.15,185.05,2.96]
[1755539860682,4.28517784,185.14,185.05,2.96]
[1755539860980,2.87,185.12,185.01,8.8644892]
[1755539861473,4.28925995,185.11,185.01,8.8644892]
[1755539861675,0.03921802,185.08,185.01,8.8644892]
[1755539862776,0.03921802,185.08,185.01,2.96]
[1755539865069,0.03921802,185.08,184.97,5.9044892]
[1755539865070,2.87,185.06,184.97,8.8644892]
[1755539865275,4.30313769,185.05,184.94,2.96]
[1755539865586,2.87,185.03,184.94,2.96]
[1755539865880,0.03793027,185.01,184.94,2.96]
[1755539868678,0.03793027,185.01,184.98,2.96]
[1755539868878,0.03793027,185.01,184.97,5.9044892]
[1755539869281,52.87,185.07,184.98,2.96]
[1755539869480,4.31496485,185.06,184.98,2.96]
[1755539869682,0.03847157,185.01,184.97,11.3077892]
[1755539869876,0.03847157,185.01,185.0,2.96]
[1755539874092,0.03847157,185.01,184.97,8.7444892]
[1755539874293,3.09847157,185.01,184.97,2.84]
[1755539874991,0.03847157,185.01,184.93,5.9044892]
[1755539875199,0.03847157,185.01,184.94,2.84]
[1755539875609,0.03847157,185.01,184.95,5.4038]
[1755539876097,0.03847157,185.01,184.94,8.2442]
[1755539876288,0.03847157,185.01,184.94,2.84]
[1755539876797,0.03847157,185.01,184.95,5.404]
[1755539878300,0.03847157,185.01,184.97,2.84]
[1755539878490,0.03847157,185.01,184.98,2.84]
[1755539879803,0.03847157,185.01,184.94,2.84]
[1755539879804,3.09847157,185.01,184.94,2.84]
[1755539880507,3.09847157,185.01,184.9,2.84]
[1755539880909,3.06,185.01,184.9,2.84]
[1755539881406,0.04141528,184.97,184.9,2.84]
[1755539884906,3.10141528,184.97,184.86,5.9044892]
[1755539885102,3.10141528,184.97,184.85,8.7444892]
[1755539885306,3.10141528,184.97,184.86,2.84]
[1755539885606,3.06,184.97,184.86,8.2464]
[1755539885804,0.0350569,184.93,184.86,8.2464]
[1755539886812,0.0350569,184.93,184.87,2.84]
[1755539888810,0.0350569,184.93,184.87,8.2462]
[1755539889217,0.0350569,184.93,184.9,2.84]
[1755539889511,0.0350569,184.93,184.91,2.84]
[1755539889812,3.06,184.97,184.91,2.84]
[1755539890014,0.03960919,184.94,184.91,2.84]
[1755539890812,0.03960919,184.94,184.92,2.84]
[1755539893307,3.09960919,184.94,184.9,2.84]
[1755539893615,3.06,184.93,184.89,5.9044892]
[1755539894212,3.06,184.93,184.89,8.7444892]
[1755539894416,3.06,184.93,184.89,6.59086964]
[1755539894613,3.06,184.93,184.89,3.75086964]
[1755539894914,3.06,184.93,184.84,5.4072]
[1755539894915,3.06,184.93,184.84,3.75086964]
[1755539903317,4.33380728,184.92,184.84,3.75086964]
[1755539903516,2.92,184.91,184.84,3.75086964]
[1755539904018,0.03439981,184.89,184.85,2.88]
[1755539904511,2.92,184.95,184.81,2.88]
[1755539904715,2.92,184.88,184.81,2.88]
[1755539904919,4.33506038,184.87,184.81,2.88]
[1755539905326,7.2588896,184.86,184.78,3.75086964]
[1755539905524,2.92,184.86,184.78,3.75086964]
[1755539905718,2.92,184.86,184.79,2.88]
[1755539905917,2.92,184.86,184.81,3.75086964]
[1755539906122,0.04142572,184.84,184.83,2.88]
[1755539906319,0.04142572,184.84,184.8,3.75086964]
[1755539906523,2.96142572,184.84,184.8,3.75086964]
[1755539906724,2.96142572,184.84,184.8,6.63086964]
[1755539906919,2.96142572,184.84,184.78,2.88]
[1755539907326,2.92,184.84,184.78,2.88]
[1755539907716,2.92,184.82,184.78,2.88]
[1755539909215,0.0360673,184.83,184.77,2.88]
[1755539911426,2.9560673,184.83,184.77,2.88]
[1755539913025,0.0360673,184.83,184.77,2.88]
[1755539913428,2.9560673,184.83,184.77,2.88]
[1755539914538,2.9560673,184.83,184.74,3.75086964]
[1755539915728,2.9560673,184.83,184.75,2.88]
[1755539918835,2.9560673,184.83,184.77,3.75086964]
[1755539919030,2.9560673,184.83,184.77,6.63086964]
[1755539920637,0.0360673,184.83,184.81,2.88]
[1755539920838,0.0360673,184.83,184.82,2.88]
[1755539921036,2.92,184.89,184.82,2.88]
[1755539921431,0.03915761,184.84,184.82,2.88]
[1755539921831,0.03915761,184.84,184.8,3.75086964]
[1755539922033,2.95915761,184.84,184.77,6.63086964]
[1755539922734,2.95915761,184.84,184.73,5.4103]
[1755539923040,2.95915761,184.84,184.73,6.63086964]
[1755539923241,2.92,184.84,184.74,2.88]
[1755539924237,0.03595157,184.81,184.74,2.88]
[1755539924537,0.03595157,184.81,184.77,2.88]
[1755539924837,2.92,184.8,184.77,2.88]
[1755539926144,0.03595157,184.81,184.77,2.88]
[1755539926343,0.03595157,184.81,184.76,3.75086964]
[1755539926542,0.03595157,184.81,184.78,2.88]
[1755539926743,0.03595157,184.81,184.76,3.75086964]
[1755539926941,0.03595157,184.81,184.78,2.88]
[1755539927243,0.03595157,184.81,184.79,2.88]
[1755539928238,0.03595157,184.81,184.76,3.75086964]
[1755539928432,0.03595157,184.81,184.77,2.88]
[1755539929248,2.95595157,184.81,184.77,2.88]
[1755539929544,0.03595157,184.81,184.78,2.88]
[1755539929744,0.03595157,184.81,184.79,2.88]
[1755539931341,0.03595157,184.81,184.77,2.88]
[1755539931645,0.03595157,184.81,184.78,2.88]
[1755539931845,2.95595157,184.81,184.78,2.88]
[1755539932239,0.03595157,184.81,184.76,6.67086964]
[1755539932438,3.01,184.8,184.76,6.67086964]
[1755539932633,3.01,184.8,184.77,2.92]
[1755539933039,3.04595157,184.81,184.74,3.75086964]
[1755539933449,3.01,184.81,184.75,2.92]
[1755539933946,3.01,184.81,184.71,6.67086964]
[1755539934152,0.03827678,184.8,184.71,6.67086964]
[1755539934448,3.01,184.79,184.71,6.67086964]
[1755539934846,3.01,184.79,184.68,3.75086964]
[1755539935238,4.25156129,184.78,184.68,3.75086964]
[1755539935448,3.01,184.76,184.68,3.75086964]
[1755539935650,3.01,184.76,184.71,0.03535991]
[1755539935850,0.0347389,184.74,184.71,0.03535991]
[1755539936050,3.01,184.73,184.71,0.03535991]
[1755539936249,3.01,184.72,184.71,0.03535991]
[1755539936451,3.01,184.75,184.71,0.03535991]
[1755539936652,3.01,184.73,184.71,0.03535991]
[1755539937942,0.03443158,184.74,184.71,2.95535991]
[1755539938148,0.03443158,184.74,184.73,2.92]
[1755539939749,0.03443158,184.74,184.72,3.75086964]
[1755539940049,0.03443158,184.74,184.72,2.92]
[1755539940256,0.03443158,184.74,184.73,2.92]
[1755539941139,3.01,184.81,184.73,2.92]
[1755539941342,3.01,184.81,184.73,3.75086964]
[1755539941545,4.25656622,184.8,184.69,2.92]
[1755539941743,3.01,184.78,184.69,6.67086964]
[1755539942354,3.01,184.78,184.72,0.03836489]
[1755539945047,3.01,184.76,184.72,0.03836489]
[1755539945250,3.01,184.75,184.72,0.03836489]
[1755539945548,50.0,184.78,184.72,0.03836489]
[1755539945744,3.01,184.76,184.72,0.03836489]
[1755539945948,3.01,184.74,184.72,0.03836489]
[1755539946145,50.0,184.78,184.72,0.03836489]
[1755539947249,3.01,184.76,184.72,0.03836489]
[1755539947444,53.01,184.78,184.73,2.92]
[1755539947855,53.01,184.78,184.72,0.03836489]
[1755539947856,50.0,184.78,184.75,2.92]
[1755539948657,53.01,184.78,184.72,0.03836489]
[1755539949461,3.01,184.78,184.72,0.03836489]
[1755539950862,50.0,184.82,184.72,0.03836489]
[1755539950863,4.2634344,184.77,184.72,0.03836489]
[1755539951057,3.01,184.76,184.72,0.03836489]
[1755539951361,3.01,184.79,184.72,0.03836489]
[1755539951564,3.01,184.77,184.72,0.03836489]
[1755539951759,3.01,184.75,184.72,0.03836489]
[1755539951958,0.04012,184.76,184.72,0.03836489]
[1755539952154,3.01,184.75,184.72,0.03836489]
[1755539952360,3.01,184.74,184.72,0.03836489]
[1755539954667,3.05012,184.76,184.72,0.03836489]
[1755539954964,3.01,184.75,184.72,0.03836489]
[1755539955262,0.04012,184.76,184.72,0.03836489]
[1755539955466,3.01,184.73,184.72,0.03836489]
[1755539960469,50.0,184.75,184.72,0.03836489]
[1755539960968,0.04012,184.76,184.72,2.95836489]
[1755539961567,3.05012,184.76,184.72,2.95836489]
[1755539964373,2.87,184.75,184.72,0.03836489]
[1755539964772,2.87,184.74,184.72,0.03836489]
[1755539965874,0.04012,184.76,184.72,0.03836489]
[1755539966174,2.87,184.73,184.72,0.03836489]
[1755539966975,0.04012,184.76,184.72,0.03836489]
[1755539967172,7.18765781,184.75,184.72,0.03836489]
[1755539967375,2.87,184.74,184.72,0.03836489]
[1755539967875,2.87,184.75,184.72,0.03836489]
[1755539968078,2.87,184.73,184.72,0.03836489]
[1755539968469,2.91012,184.76,184.72,0.03836489]
[1755539968776,2.87,184.74,184.72,0.03836489]
[1755539970371,50.04012,184.76,184.72,0.03836489]
[1755539970577,7.1899723,184.75,184.72,0.03836489]
[1755539970875,4.3199723,184.74,184.72,0.03836489]
[1755539971076,2.87,184.75,184.72,0.03836489]
[1755539971269,7.1899723,184.74,184.72,0.03836489]
[1755539971466,2.87,184.74,184.72,0.03836489]
[1755539972073,50.04012,184.76,184.72,0.03836489]
[1755539972280,6.89619783,184.75,184.72,0.03836489]
[1755539972477,2.87,184.73,184.72,0.03836489]
[1755539973680,50.04012,184.76,184.72,0.03836489]
[1755539973873,2.87,184.75,184.72,0.03836489]
[1755539974072,4.32279748,184.75,184.72,0.03836489]
[1755539974273,7.19279748,184.74,184.72,0.03836489]
[1755539974473,2.87,184.74,184.72,0.03836489]
[1755539974877,52.91012,184.76,184.72,2.93836489]
[1755539975078,4.32418299,184.75,184.72,2.93836489]
[1755539975268,4.32418299,184.74,184.72,2.93836489]
[1755539975474,52.91012,184.76,184.72,2.93836489]
[1755539975673,4.32557743,184.75,184.72,2.93836489]
[1755539975874,52.91012,184.76,184.72,2.93836489]
[1755539976078,52.91012,184.76,184.73,2.9]
[1755539976079,4.32567121,184.75,184.73,2.9]
[1755539976275,4.32781423,184.74,184.73,2.9]
[1755539976482,0.04012,184.76,184.72,0.03836489]
[1755539976979,0.04012,184.76,184.75,2.9]
[1755539977378,4.36957936,184.76,184.75,2.9]
[1755539977576,4.36957936,184.76,184.73,2.9]
[1755539977781,2.91012,184.76,184.72,0.03836489]
[1755539978081,2.91012,184.76,184.72,2.93836489]
[1755539978477,2.91012,184.76,184.73,2.9]
[1755539978677,0.04012,184.76,184.73,2.9]
[1755539979680,0.04012,184.76,184.74,2.9]
[1755539983479,0.04012,184.76,184.72,0.03836489]
[1755539983480,0.04012,184.76,184.72,3.78923453]
[1755539983685,0.04012,184.76,184.73,2.9]
[1755539984485,0.04012,184.76,184.72,3.78923453]
[1755539984684,0.04012,184.76,184.75,2.9]
[1755539985687,0.04012,184.76,184.72,3.78923453]
[1755539985881,2.91012,184.76,184.72,0.03836489]
[1755539986087,2.91012,184.76,184.72,2.93836489]
[1755539986992,4.33170208,184.75,184.72,2.93836489]
[1755539987185,2.91012,184.76,184.72,2.93836489]
[1755539987380,7.20183004,184.75,184.72,0.03836489]
[1755539987592,2.87,184.73,184.72,0.03836489]
[1755539987779,2.87,184.74,184.72,0.03836489]
[1755539989086,7.20258646,184.73,184.72,0.03836489]
[1755539989491,4.33258646,184.73,184.72,0.03836489]
[1755539990195,7.20258646,184.73,184.72,0.03836489]
[1755539990396,9.78329173,184.73,184.72,0.03836489]
[1755539991592,2.87,184.73,184.72,0.03836489]
[1755539991792,9.79019775,184.73,184.72,0.03836489]
[1755539992300,9.79009206,184.73,184.72,0.03836489]
[1755539994098,9.79009206,184.73,184.65,2.9]
[1755539994299,6.92009206,184.72,184.65,2.9]
[1755539994599,2.87,184.73,184.65,2.9]
[1755539994600,4.34012987,184.71,184.65,2.9]
[1755539994791,2.87,184.73,184.65,2.9]
[1755539994991,3.15,184.71,184.65,2.9]